[Event "WYCC U14 Girls 2019"]
[Site "Mumbai"]
[Date "2019.10.10"]
[Round "9.3"]
[White "Mungunzul, Bat-Erdene"]
[Black "Hakobyan, Astghik"]
[Result "1-0"]
[ECO "A46"]
[WhiteElo "1912"]
[BlackElo "1978"]
[Annotator "NA"]
[PlyCount "73"]
[EventDate "2019.10.02"]
[EventType "swiss"]
[EventCountry "IND"]
[SourceTitle "playchess.com"]
[Source "ChessBase"]
[SourceQuality "1"]
[TimeControl "40/5400+30:1800+30"]

1. d4 {[%emt 0:00:00]} Nf6 {[%emt 0:00:00]} 2. Nf3 {[%emt 0:00:00]} e6 {[%emt 0:00:00]} 3. Bf4 {[%emt 0:00:00]} b6 {[%emt 0:00:27]} 4. e3 {[%emt 0:00:17]} Bb7 {[%emt 0:00:11]} 5. Bd3 {[%emt 0:00:22]} Be7 {[%emt 0:00:39]} 6. h3 {[%emt 0:00:22]} c5 {[%emt 0:00:42]} 7. c3 {[%emt 0:00:59]} Nc6 {[%emt 0:02:35]} 8. Nbd2 {[%emt 0:03:19]} d6 {[%emt 0:02:00]} 9. Qe2 {[%emt 0:02:49]} cxd4 {[%emt 0:07:49]} 10. exd4 {[%emt 0:00:32]} Qd7 {[%emt 0:01:28]} 11. Bh2 {[%emt 0:08:14]} O-O {[%emt 0:01:49]} 12. O-O {[%emt 0:04:54]} Rfe8 {[%emt 0:02:18]} 13. Rad1 {[%emt 0:05:31]} Bf8 {[%emt 0:01:20]} 14. Rfe1 {[%emt 0:01:50]} a6 {[%emt 0:08:25]} 15. Ng5 {[%emt 0:15:09]} Ne7 {[%emt 0:09:34]} 16. Nc4 {[%emt 0:05:47]} Ned5 17. Ne4 {[%emt 0:03:58]} Nxe4 {[%emt 0:08:15]} 18. Bxe4 {[%emt 0:00:13]} Qc7 {[%emt 0:09:06]} 19. Qd3 {[%emt 0:04:47]} f5 {[%emt 0:03:12]} 20. Bf3 {[%emt 0:00:41]} g6 {[%emt 0:09:58]} 21. Re2 {[%emt 0:02:37]} b5 {[%emt 0:00:47]} 22. Nd2 {[%emt 0:00:58]} Nf6 {[%emt 0:04:00]} 23. Rde1 {[%emt 0:00:29]} Kf7 {[%emt 0:01:23]} 24. Bf4 {[%emt 0:03:50]} Rad8 {[%emt 0:04:52]} 25. Qc2 {[%emt 0:08:34]} h6 {[%emt 0:03:07]} 26. h4 {[%emt 0:00:51]} Bxf3 {[%emt 0:01:24]} 27. Nxf3 {[%emt 0:00:42]} Ne4 {[%emt 0:03:29]} 28. Qc1 {[%emt 0:02:27]} e5 {[%emt 0:11:31]} 29. Bxh6 {[%emt 0:02:17]} Bxh6 {[%emt 0:00:32]} 30. Qxh6 {[%emt 0:00:10]} Rh8 {[%emt 0:00:01]} 31. Qe3 {[%emt 0:00:57]} Qe7 {[%emt 0:02:27]} 32. g3 {[%emt 0:01:44]} Kg7 {[%emt 0:00:45]} 33. Rd1 {[%emt 0:03:44]} Rhe8 {[%emt 0:01:08]} 34. Ree1 {[%emt 0:01:11]} Kh7 {[%emt 0:01:05]} 35. Rd3 {[%emt 0:01:02]} Qf7 {[%emt 0:00:36]} 36. dxe5 {[%emt 0:01:42]} Nc5 {[%emt 0:00:29]} 37. Ng5+ {[%emt 0:00:09]} 1-0

[Event "WYCC U14 Girls 2019"]
[Site "Mumbai"]
[Date "2019.10.10"]
[Round "9.4"]
[White "Kamalidenova, Meruert"]
[Black "Velpula Sarayu"]
[Result "1-0"]
[ECO "B27"]
[WhiteElo "2025"]
[BlackElo "1717"]
[Annotator "NA"]
[PlyCount "95"]
[EventDate "2019.10.02"]
[EventType "swiss"]
[EventCountry "IND"]
[SourceTitle "playchess.com"]
[Source "ChessBase"]
[SourceQuality "1"]
[TimeControl "40/5400+30:1800+30"]

1. e4 {[%emt 0:00:00]} c5 {[%emt 0:00:14]} 2. Nf3 {[%emt 0:00:00]} g6 {[%emt 0:00:45]} 3. c4 {[%emt 0:00:01]} Nc6 {[%emt 0:00:53]} 4. d4 {[%emt 0:00:21]} cxd4 {[%emt 0:00:39]} 5. Nxd4 {[%emt 0:00:10]} Nf6 {[%emt 0:00:34]} 6. Nc3 {[%emt 0:00:11]} d6 {[%emt 0:00:58]} 7. Be2 {[%emt 0:00:25]} Nxd4 {[%emt 0:01:00]} 8. Qxd4 Bg7 {[%emt 0:00:41]} 9. Be3 {[%emt 0:00:42]} O-O {[%emt 0:00:48]} 10. Qd2 {[%emt 0:00:21]} a5 {[%emt 0:00:47]} 11. O-O {[%emt 0:04:44]} a4 {[%emt 0:02:00]} 12. Rad1 {[%emt 0:01:37]} Qa5 {[%emt 0:04:59]} 13. f3 {[%emt 0:03:48]} Be6 {[%emt 0:01:57]} 14. Nb5 {[%emt 0:04:56]} Qxd2 {[%emt 0:14:41]} 15. Rxd2 {[%emt 0:02:02]} Rfc8 {[%emt 0:03:55]} 16. b3 {[%emt 0:04:26]} axb3 {[%emt 0:05:14]} 17. axb3 {[%emt 0:01:07]} Ne8 {[%emt 0:01:26]} 18. f4 {[%emt 0:05:04]} Bd7 {[%emt 0:09:02]} 19. Na7 {[%emt 0:05:23]} Rcb8 {[%emt 0:00:41]} 20. Bb6 {[%emt 0:01:08]} Bc6 {[%emt 0:04:10]} 21. Bf3 {[%emt 0:02:25]} Bh6 {[%emt 0:06:22]} 22. g3 {[%emt 0:03:34]} g5 {[%emt 0:01:32]} 23. Bh1 {[%emt 0:02:04]} gxf4 {[%emt 0:02:32]} 24. gxf4 {[%emt 0:01:01]} Nf6 {[%emt 0:00:45]} 25. Bc7 {[%emt 0:03:15]} Bxe4 {[%emt 0:11:20]} 26. Bxb8 {[%emt 0:03:51]} Rxb8 {[%emt 0:00:18]} 27. Nb5 {[%emt 0:03:16]} Bxh1 {[%emt 0:03:39]} 28. Kxh1 {[%emt 0:00:22]} Ne4 {[%emt 0:00:03]} 29. Re2 {[%emt 0:01:49]} f5 {[%emt 0:02:22]} 30. Nd4 {[%emt 0:01:55]} Rf8 {[%emt 0:01:59]} 31. Nxf5 {[%emt 0:02:50]} Rxf5 {[%emt 0:00:18]} 32. Rxe4 {[%emt 0:00:06]} Kf7 {[%emt 0:00:12]} 33. Rfe1 {[%emt 0:01:03]} Bf8 {[%emt 0:00:07]} 34. Ra1 {[%emt 0:01:41]} Rc5 {[%emt 0:01:21]} 35. b4 {[%emt 0:02:12]} Rc7 {[%emt 0:00:06]} 36. Ra5 {[%emt 0:00:48]} e6 {[%emt 0:00:45]} 37. Kg2 {[%emt 0:01:58]} Kf6 {[%emt 0:00:43]} 38. Kf3 {[%emt 0:01:15]} Be7 {[%emt 0:01:53]} 39. Ke2 {[%emt 0:03:30]} Rd7 {[%emt 0:00:31]} 40. Rh5 {[%emt 0:02:32]} Bf8 {[%emt 0:02:12]} 41. Kd3 {[%emt 0:32:44]} Rc7 {[%emt 0:30:49]} 42. Rb5 {[%emt 0:01:52]} Kf7 {[%emt 0:00:54]} 43. Re2 {[%emt 0:01:24]} Ke7 {[%emt 0:02:32]} 44. Rb6 {[%emt 0:10:04]} Kd7 {[%emt 0:00:49]} 45. Ra2 {[%emt 0:01:08]} Bg7 {[%emt 0:00:27]} 46. Ra7 {[%emt 0:02:09]} Kc8 {[%emt 0:00:06]} 47. Rxd6 {[%emt 0:01:00]} Kb8 {[%emt 0:00:05]} 48. Ra2 {[%emt 0:00:31]} 1-0

[Event "WYCC U14 Girls 2019"]
[Site "Mumbai"]
[Date "2019.10.10"]
[Round "9.5"]
[White "Divya Deshmukh"]
[Black "Poliakova, Varvara"]
[Result "1-0"]
[ECO "A45"]
[WhiteElo "2358"]
[BlackElo "2042"]
[Annotator "NA"]
[PlyCount "79"]
[EventDate "2019.10.02"]
[EventType "swiss"]
[EventCountry "IND"]
[SourceTitle "playchess.com"]
[Source "ChessBase"]
[SourceQuality "1"]
[TimeControl "40/5400+30:1800+30"]

1. d4 Nf6 2. Bg5 e6 3. e4 h6 4. Bxf6 Qxf6 5. Nf3 d6 6. Nc3 g6 7. Qd2 a6 8. O-O-O Bg7 9. e5 {A46: 1 d4 Nf6 2 Nf3 e6: Torre, London and Colle Systems} Qd8 $146 ({Predecessor:} 9... Qe7 10. Qf4 d5 11. h4 Nd7 12. Bd3 b6 13. Ne2 Bb7 14. Kb1 c5 15. c3 c4 16. Bc2 b5 {1-0 (54) Savchenko,V (2414)-Zude,A (2461) Germany 2009}) 10. Qf4 d5 11. Bd3 b5 12. Qg3 Qe7 13. Ne2 c5 14. dxc5 Nc6 15. Ned4 Qxc5 16. Bxg6 fxg6 17. Qxg6+ Kf8 18. Nxc6 Qxc6 19. Rd4 Qd7 20. Rf4+ Kg8 21. h4 Qe7 22. h5 Bd7 $17 23. Qg3 Rf8 24. Rg4 Be8 25. Nd4 Rh7 26. f4 Rf5 27. Nxf5 exf5 28. Rgh4 Kh8 29. Qd3 Qe6 30. Rd1 Bc6 31. Qa3 Kg8 32. Rh3 Bf8 33. Rg3+ Rg7 34. Rxg7+ Kxg7 35. Qxa6 Bd7 36. Qa7 Be7 37. Qd4 Bc6 38. Rd3 Kh7 39. a3 Qg8 40. Qa7 1-0

[Event "WYCC U14 Girls 2019"]
[Site "Mumbai"]
[Date "2019.10.10"]
[Round "9.6"]
[White "Zavivaeva, Emilia"]
[Black "Wikar, Martyna"]
[Result "0-1"]
[ECO "B33"]
[WhiteElo "1745"]
[BlackElo "1969"]
[Annotator "NA"]
[PlyCount "82"]
[EventDate "2019.10.02"]
[EventType "swiss"]
[EventCountry "IND"]
[SourceTitle "playchess.com"]
[Source "ChessBase"]
[SourceQuality "1"]
[TimeControl "40/5400+30:1800+30"]

1. e4 {[%emt 0:00:00]} c5 {[%emt 0:00:00]} 2. Nf3 {[%emt 0:00:01]} Nc6 {[%emt 0:00:00]} 3. d4 {[%emt 0:00:11]} cxd4 {[%emt 0:00:10]} 4. Nxd4 {[%emt 0:00:19]} Nf6 {[%emt 0:00:12]} 5. Nc3 {[%emt 0:00:09]} e5 {[%emt 0:00:13]} 6. Ndb5 {[%emt 0:00:13]} d6 {[%emt 0:00:13]} 7. Bg5 {[%emt 0:00:28]} a6 {[%emt 0:00:20]} 8. Na3 {[%emt 0:00:53]} b5 {[%emt 0:00:23]} 9. Bxf6 {[%emt 0:00:19]} gxf6 {[%emt 0:00:16]} 10. Nd5 {[%emt 0:00:30]} Bg7 {[%emt 0:00:17]} 11. c3 {[%emt 0:03:06]} Rb8 {[%emt 0:01:24]} 12. Nc2 {[%emt 0:00:39]} O-O {[%emt 0:03:52]} 13. g3 {[%emt 0:03:33]} Ne7 {[%emt 0:01:06]} 14. Ncb4 {[%emt 0:02:17]} Bb7 {[%emt 0:02:20]} 15. Bg2 {[%emt 0:01:55]} a5 {[%emt 0:07:45]} 16. Nxe7+ {[%emt 0:01:53]} Qxe7 {[%emt 0:00:02]} 17. Nd5 {[%emt 0:00:17]} Bxd5 {[%emt 0:02:04]} 18. Qxd5 {[%emt 0:00:34]} Rfc8 {[%emt 0:05:22]} 19. Rd1 {[%emt 0:05:04]} Bf8 {[%emt 0:01:05]} 20. O-O {[%emt 0:00:41]} Rc5 {[%emt 0:00:27]} 21. Qd2 {[%emt 0:00:11]} b4 {[%emt 0:02:24]} 22. cxb4 {[%emt 0:00:45]} Rxb4 {[%emt 0:00:24]} 23. b3 {[%emt 0:00:57]} f5 {[%emt 0:05:24]} 24. exf5 {[%emt 0:08:55]} d5 {[%emt 0:01:29]} 25. Rfe1 {[%emt 0:02:19]} Qf6 {[%emt 0:06:26]} 26. Qe3 {[%emt 0:03:49]} e4 {[%emt 0:04:17]} 27. Qf4 {[%emt 0:01:40]} h5 {[%emt 0:02:06]} 28. Qe3 {[%emt 0:05:42]} Qxf5 {[%emt 0:05:43]} 29. f3 {[%emt 0:03:29]} Rc2 {[%emt 0:07:37]} 30. fxe4 {[%emt 0:04:20]} dxe4 {[%emt 0:02:30]} 31. Rd8 {[%emt 0:05:25]} Kg7 {[%emt 0:06:29]} 32. Rdd1 {[%emt 0:00:00]} Kg8 {[%emt 0:00:00]} 33. Rd8 {[%emt 0:01:00]} Kg7 {[%emt 0:01:00]} 34. Rxf8 {[%emt 0:12:04]} Kxf8 {[%emt 0:01:25]} 35. a3 {[%emt 0:00:30]} Rxb3 {[%emt 0:03:16]} 36. Qd4 {[%emt 0:04:10]} Qc5 {[%emt 0:01:24]} 37. Rxe4 {[%emt 0:02:43]} Qxd4+ {[%emt 0:00:26]} 38. Rxd4 {[%emt 0:00:13]} Rxa3 {[%emt 0:00:25]} 39. Rd5 {[%emt 0:01:49]} Ra1+ {[%emt 0:00:09]} 40. Bf1 {[%emt 0:00:06]} Rcc1 {[%emt 0:00:05]} 41. Rf5 {[%emt 0:30:07]} Rxf1+ {[%emt 0:30:42]} 0-1

[Event "WYCC U14 Girls 2019"]
[Site "Mumbai"]
[Date "2019.10.10"]
[Round "9.7"]
[White "Dhyana Patel"]
[Black "Sulyok, Eszter"]
[Result "1-0"]
[ECO "B42"]
[WhiteElo "1995"]
[BlackElo "1893"]
[Annotator "NA"]
[PlyCount "45"]
[EventDate "2019.10.02"]
[EventType "swiss"]
[EventCountry "IND"]
[SourceTitle "playchess.com"]
[Source "ChessBase"]
[SourceQuality "1"]
[TimeControl "40/5400+30:1800+30"]

1. e4 c5 2. Nf3 e6 3. d4 cxd4 4. Nxd4 a6 5. Bd3 Nf6 6. O-O Qc7 7. Qe2 d6 8. f4 Nbd7 9. c4 g6 10. f5 e5 11. Nb3 Bg7 12. Nc3 O-O 13. g4 Nb6 14. g5 Nh5 15. f6 Bh8 16. Be3 h6 17. Qf2 Nd7 18. Nd5 Qd8 19. Be2 Nf4 20. Bxf4 exf4 21. Ne7+ Kh7 22. Qh4 h5 23. Bxh5 1-0

[Event "WYCC U14 Girls 2019"]
[Site "Mumbai"]
[Date "2019.10.10"]
[Round "9.8"]
[White "De Rycke, Tyani"]
[Black "Omonova, Umida"]
[Result "1/2-1/2"]
[ECO "B26"]
[WhiteElo "1891"]
[BlackElo "2078"]
[Annotator "NA"]
[PlyCount "104"]
[EventDate "2019.10.02"]
[EventType "swiss"]
[EventCountry "IND"]
[SourceTitle "playchess.com"]
[Source "ChessBase"]
[SourceQuality "1"]
[TimeControl "40/5400+30:1800+30"]

1. e4 {[%emt 0:00:00]} c5 {[%emt 0:00:26]} 2. Nc3 {[%emt 0:00:00]} Nc6 {[%emt 0:00:30]} 3. g3 {[%emt 0:00:00]} g6 {[%emt 0:01:09]} 4. Bg2 {[%emt 0:00:00]} Bg7 {[%emt 0:01:12]} 5. d3 {[%emt 0:00:03]} d6 {[%emt 0:00:41]} 6. Be3 {[%emt 0:00:09]} Rb8 {[%emt 0:00:55]} 7. Qd2 {[%emt 0:00:13]} b5 {[%emt 0:00:54]} 8. f4 {[%emt 0:00:49]} b4 {[%emt 0:01:02]} 9. Nd1 {[%emt 0:00:14]} e6 {[%emt 0:01:24]} 10. c3 {[%emt 0:03:58]} Qb6 {[%emt 0:01:40]} 11. Ne2 {[%emt 0:02:10]} e5 {[%emt 0:06:22]} 12. O-O {[%emt 0:00:44]} Nge7 {[%emt 0:00:10]} 13. h3 {[%emt 0:06:18]} h5 {[%emt 0:03:39]} 14. Nf2 {[%emt 0:06:12]} Be6 {[%emt 0:03:02]} 15. g4 {[%emt 0:01:32]} hxg4 {[%emt 0:03:17]} 16. hxg4 {[%emt 0:00:24]} exf4 {[%emt 0:01:57]} 17. Nxf4 {[%emt 0:01:35]} bxc3 {[%emt 0:02:31]} 18. bxc3 {[%emt 0:00:08]} Qb2 {[%emt 0:01:29]} 19. Nxe6 {[%emt 0:01:18]} fxe6 {[%emt 0:00:18]} 20. Qxb2 {[%emt 0:21:30]} Rxb2 {[%emt 0:00:26]} 21. Rfc1 {[%emt 0:00:33]} O-O {[%emt 0:01:21]} 22. g5 {[%emt 0:04:13]} Ne5 {[%emt 0:04:06]} 23. Rcb1 {[%emt 0:10:32]} Rfb8 {[%emt 0:03:28]} 24. Rxb2 {[%emt 0:00:36]} Rxb2 {[%emt 0:00:02]} 25. d4 {[%emt 0:03:44]} Nc4 {[%emt 0:01:44]} 26. Bc1 {[%emt 0:01:07]} Rb8 {[%emt 0:01:03]} 27. Bf1 {[%emt 0:08:46]} Na5 28. Bf4 {[%emt 0:00:13]} cxd4 {[%emt 0:09:33]} 29. Bxd6 {[%emt 0:00:47]} Rb7 {[%emt 0:00:02]} 30. cxd4 {[%emt 0:03:05]} Bxd4 {[%emt 0:00:02]} 31. Rd1 {[%emt 0:00:32]} Nec6 {[%emt 0:00:54]} 32. Bh3 {[%emt 0:03:33]} Kf7 {[%emt 0:00:59]} 33. Rd3 {[%emt 0:02:12]} Ne5 {[%emt 0:09:04]} 34. Bxe5 {[%emt 0:01:51]} Bxe5 {[%emt 0:00:03]} 35. Ng4 {[%emt 0:00:34]} Nc6 {[%emt 0:10:45]} 36. Rf3+ {[%emt 0:00:51]} Ke7 {[%emt 0:00:37]} 37. Nxe5 {[%emt 0:00:18]} Nxe5 {[%emt 0:00:02]} 38. Rf6 {[%emt 0:00:21]} Rb6 {[%emt 0:01:09]} 39. Kf2 {[%emt 0:00:35]} a5 {[%emt 0:01:42]} 40. Ke3 {[%emt 0:03:18]} a4 {[%emt 0:06:01]} 41. Kd4 {[%emt 0:30:31]} Nd7 {[%emt 0:30:14]} 42. Rf2 {[%emt 0:05:56]} Rb4+ {[%emt 0:02:21]} 43. Ke3 {[%emt 0:01:49]} a3 {[%emt 0:00:17]} 44. Rc2 {[%emt 0:01:41]} Ne5 {[%emt 0:03:49]} 45. Kf4 {[%emt 0:00:00]} Rb2 {[%emt 0:00:00]} 46. Rc3 {[%emt 0:00:00]} Kd6 {[%emt 0:00:00]} 47. Rxa3 {[%emt 0:00:00]} Nc6 {[%emt 0:00:00]} 48. e5+ {[%emt 0:00:00]} Nxe5 {[%emt 0:00:00]} 49. Ra6+ {[%emt 0:00:00]} Nc6 {[%emt 0:00:00]} 50. Bxe6 {[%emt 0:00:00]} Rb4+ {[%emt 0:00:00]} 51. Kg3 {[%emt 0:00:00]} Kc7 {[%emt 0:00:00]} 52. Bf7 {[%emt 0:00:00]} Ne5 {[%emt 0:00:00]} 1/2-1/2

[Event "WYCC U14 Girls 2019"]
[Site "Mumbai"]
[Date "2019.10.10"]
[Round "9.9"]
[White "Ishvi Aggarwal"]
[Black "Obada, Ema"]
[Result "1/2-1/2"]
[ECO "A40"]
[WhiteElo "1935"]
[BlackElo "1987"]
[Annotator "NA"]
[PlyCount "117"]
[EventDate "2019.10.02"]
[EventType "swiss"]
[EventCountry "IND"]
[SourceTitle "playchess.com"]
[Source "ChessBase"]
[SourceQuality "1"]
[TimeControl "40/5400+30:1800+30"]

1. d4 {[%emt 0:00:00]} Nf6 {[%emt 0:00:00]} 2. c4 {[%emt 0:00:00]} e6 {[%emt 0:00:00]} 3. g3 {[%emt 0:00:00]} Bb4+ {[%emt 0:00:00]} 4. Bd2 {[%emt 0:00:00]} Qe7 {[%emt 0:00:10]} 5. Nf3 {[%emt 0:00:00]} O-O {[%emt 0:00:26]} 6. Bg2 {[%emt 0:00:12]} Bxd2+ {[%emt 0:02:29]} 7. Qxd2 {[%emt 0:00:08]} d6 {[%emt 0:02:21]} 8. Nc3 {[%emt 0:01:09]} e5 {[%emt 0:00:50]} 9. O-O {[%emt 0:05:58]} Re8 {[%emt 0:01:01]} 10. d5 {[%emt 0:08:26]} a5 {[%emt 0:02:48]} 11. a3 {[%emt 0:04:46]} Na6 {[%emt 0:00:43]} 12. e4 {[%emt 0:05:50]} Nc5 {[%emt 0:00:54]} 13. Qc2 {[%emt 0:00:15]} a4 {[%emt 0:00:26]} 14. Nd2 {[%emt 0:03:09]} Nh5 {[%emt 0:09:43]} 15. b4 {[%emt 0:14:55]} axb3 {[%emt 0:00:23]} 16. Nxb3 {[%emt 0:00:10]} Nxb3 {[%emt 0:01:29]} 17. Qxb3 {[%emt 0:00:03]} g6 {[%emt 0:00:33]} 18. Rfd1 {[%emt 0:04:58]} b6 {[%emt 0:04:10]} 19. Nb5 {[%emt 0:08:43]} f5 {[%emt 0:14:30]} 20. exf5 {[%emt 0:02:58]} gxf5 {[%emt 0:05:46]} 21. a4 Ra5 {[%emt 0:06:03]} 22. Re1 {[%emt 0:09:20]} Qd8 {[%emt 0:01:22]} 23. Qc3 {[%emt 0:00:30]} Ba6 {[%emt 0:00:30]} 24. Bf1 {[%emt 0:00:30]} Nf6 {[%emt 0:00:30]} 25. Bh3 {[%emt 0:00:30]} Bc8 {[%emt 0:00:30]} 26. f4 {[%emt 0:00:30]} Ne4 {[%emt 0:00:30]} 27. Qf3 {[%emt 0:00:30]} Rf8 {[%emt 0:00:30]} 28. Kh1 {[%emt 0:00:30]} Kh8 {[%emt 0:00:30]} 29. Bg2 {[%emt 0:00:30]} Bd7 {[%emt 0:00:30]} 30. fxe5 {[%emt 0:00:30]} Bxb5 {[%emt 0:00:30]} 31. axb5 {[%emt 0:00:30]} Rxa1 {[%emt 0:00:30]} 32. Rxa1 {[%emt 0:00:30]} dxe5 {[%emt 0:00:30]} 33. Qe2 {[%emt 0:28:02]} Nd6 {[%emt 0:40:04]} 34. Qxe5+ {[%emt 0:00:18]} Qf6 {[%emt 0:00:03]} 35. Qxf6+ {[%emt 0:00:29]} Rxf6 {[%emt 0:00:02]} 36. Ra8+ {[%emt 0:00:01]} Kg7 {[%emt 0:00:14]} 37. Ra7 {[%emt 0:01:51]} Rf7 {[%emt 0:00:04]} 38. Bf1 {[%emt 0:00:43]} Kf6 {[%emt 0:00:19]} 39. Ra1 {[%emt 0:00:48]} Ke5 {[%emt 0:01:00]} 40. Re1+ {[%emt 0:01:04]} Kd4 {[%emt 0:00:10]} 41. Rd1+ {[%emt 0:30:38]} Kc5 {[%emt 0:30:41]} 42. Re1 {[%emt 0:00:00]} f4 {[%emt 0:00:00]} 43. Kg2 {[%emt 0:00:00]} fxg3 {[%emt 0:00:00]} 44. Kxg3 {[%emt 0:00:00]} Nf5+ {[%emt 0:00:00]} 45. Kg2 {[%emt 0:00:00]} Rg7+ {[%emt 0:00:00]} 46. Kh3 {[%emt 0:00:00]} Rg1 {[%emt 0:00:00]} 47. Rb1 {[%emt 0:00:00]} Ne3 {[%emt 0:00:00]} 48. Bd3 {[%emt 0:00:00]} Rxb1 {[%emt 0:00:00]} 49. Bxb1 {[%emt 0:00:00]} h6 {[%emt 0:00:00]} 50. Kh4 {[%emt 0:00:00]} Kxc4 {[%emt 0:00:00]} 51. Kh5 {[%emt 0:00:00]} Kxd5 {[%emt 0:00:16]} 52. h4 {[%emt 0:00:00]} Ng2 {[%emt 0:00:40]} 53. Bf5 {[%emt 0:02:18]} Ke5 {[%emt 0:01:10]} 54. Bd7 {[%emt 0:00:49]} Kf4 {[%emt 0:05:03]} 55. Bc6 {[%emt 0:01:23]} Ne3 {[%emt 0:00:07]} 56. Kxh6 {[%emt 0:00:11]} Nf5+ {[%emt 0:00:05]} 57. Kh5 {[%emt 0:00:29]} Kg3 {[%emt 0:00:20]} 58. Kg5 {[%emt 0:00:48]} Nxh4 {[%emt 0:00:12]} 59. Kf6 {[%emt 0:00:21]} 1/2-1/2

[Event "WYCC U14 Girls 2019"]
[Site "Mumbai"]
[Date "2019.10.10"]
[Round "9.10"]
[White "Ghomi, Parnian"]
[Black "Bhagyashree Patil"]
[Result "0-1"]
[ECO "C97"]
[WhiteElo "1948"]
[BlackElo "1802"]
[Annotator "NA"]
[PlyCount "128"]
[EventDate "2019.10.02"]
[EventType "swiss"]
[EventCountry "IND"]
[SourceTitle "playchess.com"]
[Source "ChessBase"]
[SourceQuality "1"]
[TimeControl "40/5400+30:1800+30"]

1. e4 {[%emt 0:03:19]} e5 {[%emt 0:00:00]} 2. Nf3 {[%emt 0:00:07]} Nc6 {[%emt 0:00:00]} 3. Bb5 {[%emt 0:00:07]} a6 {[%emt 0:00:00]} 4. Ba4 {[%emt 0:00:07]} Nf6 {[%emt 0:00:00]} 5. O-O {[%emt 0:00:09]} Be7 {[%emt 0:00:01]} 6. Re1 {[%emt 0:00:06]} b5 {[%emt 0:00:04]} 7. Bb3 {[%emt 0:00:04]} d6 {[%emt 0:00:06]} 8. c3 {[%emt 0:00:46]} O-O {[%emt 0:00:22]} 9. h3 {[%emt 0:00:04]} Na5 {[%emt 0:00:04]} 10. Bc2 {[%emt 0:00:05]} c5 {[%emt 0:00:03]} 11. d4 {[%emt 0:00:07]} Qc7 {[%emt 0:00:04]} 12. Nbd2 {[%emt 0:00:32]} Bd7 {[%emt 0:00:49]} 13. Nf1 {[%emt 0:07:39]} Nc4 {[%emt 0:01:54]} 14. b3 {[%emt 0:02:02]} Nb6 {[%emt 0:00:51]} 15. Be3 {[%emt 0:01:29]} Rfc8 {[%emt 0:04:34]} 16. Rc1 {[%emt 0:08:21]} Bf8 {[%emt 0:06:05]} 17. Bg5 {[%emt 0:04:32]} Ne8 {[%emt 0:01:57]} 18. Bb1 {[%emt 0:09:55]} g6 {[%emt 0:06:36]} 19. Qd2 {[%emt 0:03:56]} Bg7 {[%emt 0:03:18]} 20. d5 {[%emt 0:09:57]} c4 {[%emt 0:01:54]} 21. b4 {[%emt 0:03:01]} a5 {[%emt 0:02:58]} 22. a3 axb4 {[%emt 0:03:28]} 23. axb4 {[%emt 0:02:00]} Ra3 {[%emt 0:02:24]} 24. g4 {[%emt 0:08:17]} Rca8 {[%emt 0:02:49]} 25. Ng3 {[%emt 0:01:28]} Qc8 {[%emt 0:10:32]} 26. Be3 {[%emt 0:02:25]} Qc7 {[%emt 0:02:11]} 27. Rf1 {[%emt 0:09:48]} h5 {[%emt 0:11:16]} 28. Nh2 {[%emt 0:02:28]} hxg4 {[%emt 0:09:00]} 29. hxg4 {[%emt 0:02:05]} Bc8 {[%emt 0:00:15]} 30. Kg2 {[%emt 0:15:06]} Nd7 {[%emt 0:02:38]} 31. Rh1 {[%emt 0:00:27]} Nf8 {[%emt 0:00:22]} 32. Bh6 {[%emt 0:02:30]} Bxh6 {[%emt 0:02:19]} 33. Qxh6 {[%emt 0:00:02]} f6 {[%emt 0:00:30]} 34. Qd2 {[%emt 0:02:32]} R8a7 {[%emt 0:08:07]} 35. g5 {[%emt 0:00:23]} Qe7 {[%emt 0:01:22]} 36. gxf6 {[%emt 0:00:24]} Qxf6 {[%emt 0:00:09]} 37. Nf3 {[%emt 0:01:14]} Bg4 {[%emt 0:00:55]} 38. Ng5 {[%emt 0:00:43]} Nh7 {[%emt 0:02:08]} 39. Nxh7 {[%emt 0:00:34]} Qf3+ {[%emt 0:00:43]} 40. Kg1 {[%emt 0:00:03]} Rxh7 {[%emt 0:00:11]} 41. Rxh7 {[%emt 0:30:03]} Kxh7 {[%emt 0:30:18]} 42. Qg5 {[%emt 0:00:00]} Nf6 {[%emt 0:00:00]} 43. Nf5 {[%emt 0:00:00]} gxf5 {[%emt 0:00:00]} 44. Qxf6 {[%emt 0:00:00]} Ra7 {[%emt 0:00:00]} 45. Qh4+ {[%emt 0:00:00]} Bh5 {[%emt 0:00:00]} 46. Kh2 {[%emt 0:00:00]} Rg7 {[%emt 0:00:00]} 47. Rg1 {[%emt 0:00:00]} Rxg1 {[%emt 0:00:00]} 48. Kxg1 {[%emt 0:00:00]} Qg4+ {[%emt 0:00:00]} 49. Qxg4 {[%emt 0:00:00]} Bxg4 {[%emt 0:00:00]} 50. Kg2 {[%emt 0:00:00]} fxe4 {[%emt 0:00:00]} 51. Bxe4+ {[%emt 0:00:00]} Kh6 {[%emt 0:00:00]} 52. Kg3 {[%emt 0:00:14]} Kg5 {[%emt 0:00:00]} 53. Bh7 {[%emt 0:04:41]} Bf5 {[%emt 0:00:00]} 54. Bg8 {[%emt 0:01:15]} Kf6 {[%emt 0:00:00]} 55. Kh4 {[%emt 0:00:51]} Kg6 {[%emt 0:00:00]} 56. f3 {[%emt 0:01:03]} Bd7 {[%emt 0:00:00]} 57. Be6 {[%emt 0:00:55]} Bxe6 {[%emt 0:00:00]} 58. dxe6 {[%emt 0:00:06]} Kf6 {[%emt 0:00:21]} 59. e7 {[%emt 0:00:43]} Kxe7 {[%emt 0:00:02]} 60. Kg5 {[%emt 0:00:26]} d5 {[%emt 0:01:34]} 61. Kf5 {[%emt 0:00:21]} d4 {[%emt 0:00:24]} 62. Ke4 {[%emt 0:00:26]} dxc3 {[%emt 0:00:45]} 63. Ke3 {[%emt 0:00:01]} Kf6 {[%emt 0:00:06]} 64. Ke2 {[%emt 0:00:06]} Kf5 {[%emt 0:00:05]} 0-1

[Event "WYCC U14 Girls 2019"]
[Site "Mumbai"]
[Date "2019.10.10"]
[Round "9.11"]
[White "Ince, Safiye Oyku"]
[Black "Kurmangaliyeva, Liya"]
[Result "1/2-1/2"]
[ECO "B31"]
[WhiteElo "1840"]
[BlackElo "1936"]
[Annotator "NA"]
[PlyCount "84"]
[EventDate "2019.10.02"]
[EventType "swiss"]
[EventCountry "IND"]
[SourceTitle "playchess.com"]
[Source "ChessBase"]
[SourceQuality "1"]
[TimeControl "40/5400+30:1800+30"]

1. e4 c5 2. Nf3 Nc6 3. Bb5 g6 4. O-O Bg7 5. c3 Nf6 6. Re1 O-O 7. d4 d5 8. e5 Ne4 9. Bxc6 bxc6 10. Nbd2 cxd4 11. cxd4 c5 12. dxc5 Nxc5 13. Nb3 Nxb3 14. Qxb3 Be6 15. Bg5 Rb8 16. Qa3 Rb7 17. Rac1 h6 18. Bd2 d4 19. Re4 Qb6 20. Rxd4 Qxb2 21. Qxb2 Rxb2 22. a4 Rfb8 23. h3 R8b7 24. Rd8+ Kh7 25. a5 Ra2 26. Rc5 Bf5 27. Nh4 Be6 28. Nf3 g5 29. Be3 Rb1+ 30. Kh2 Rba1 31. Bd2 Rd1 32. Kg3 Ra3 33. Rd4 Kg6 34. Be3 Rda1 35. Bd2 Rd1 36. Be3 Rda1 37. Bd2 f6 38. exf6 Bxf6 39. Re4 Bf5 40. Re3 Rxe3 41. Bxe3 a6 42. Ne5+ Bxe5+ 1/2-1/2